bitfinex/quotes_ETHUSD_20251116
["timestamp","ask_amount","ask_price","bid_price","bid_amount"]
[1763323354064,0.002,3096.5,3096.1,0.406504]
[1763323356253,0.002,3096.5,3096.1,5.23050955]
[1763323356564,0.002,3096.5,3096.4,0.4828]
[1763323357567,0.002,3096.5,3096.3,0.405504]
[1763323357970,0.002,3096.5,3096.2,0.405504]
[1763323360577,0.002,3096.5,3096.1,0.001]
[1763323360874,0.002,3096.5,3096.2,0.4604]
[1763323361036,0.002,3096.5,3096.4,0.4828]
[1763323361760,0.002,3096.5,3096.1,0.001]
[1763323361964,0.4638,3096.2,3096.1,0.47813042]
[1763323362165,0.4638,3096.2,3096.1,0.001]
[1763323362368,0.4799,3096.5,3096.1,0.001]
[1763323367792,0.4638,3096.2,3096.1,0.001]
[1763323369683,0.9417,3096.2,3096.1,0.001]
[1763323375912,0.002,3096.5,3096.1,1.1449]
[1763323376209,0.002,3096.5,3096.1,0.6565]
[1763323377221,0.002,3096.5,3096.1,0.4714]
[1763323377425,0.4989,3096.5,3096.1,0.4714]
[1763323377583,0.002,3096.5,3096.1,0.4714]
[1763323377787,0.002,3096.5,3096.1,0.9598]
[1763323378005,0.002,3096.5,3096.4,0.4704]
[1763323380195,0.002,3096.5,3096.4,1.364304]
[1763323380400,0.002,3096.9,3096.5,0.405504]
[1763323380614,0.002,3096.9,3096.8,0.875904]
[1763323381020,0.002,3096.9,3096.8,1.364304]
[1763323381553,0.002,3096.9,3096.8,4.59344375]
[1763323381783,0.002,3097.2,3096.9,1.5392448]
[1763323381895,0.002,3097.6,3097.4,0.405504]
[1763323382231,0.002,3097.6,3097.1,0.5679]
[1763323382232,0.002,3097.6,3097.5,2.27645815]
[1763323382433,0.002,3097.6,3097.5,1.364304]
[1763323383314,0.002,3097.6,3097.5,4.592714]
[1763323383631,0.002,3097.6,3097.5,1.364304]
[1763323385452,0.002,3097.6,3097.5,4.592714]
[1763323387277,0.002,3097.8,3097.5,4.592714]
[1763323387278,0.002,3097.8,3097.6,0.405504]
[1763323387556,0.002,3097.8,3097.6,2.3003413]
[1763323387735,0.002,3097.8,3097.7,2.0096448]
[1763323387930,0.002,3097.8,3097.7,2.4980448]
[1763323388414,0.002,3097.8,3097.7,0.875904]
[1763323388621,0.002,3097.8,3097.7,1.364304]
[1763323388822,0.002,3097.8,3097.7,0.92967051]
[1763323389343,0.002,3097.8,3097.7,1.33517451]
[1763323389542,0.002,3097.8,3097.7,0.875904]
[1763323389738,0.002,3097.8,3097.1,3.81462308]
[1763323390028,0.002,3097.8,3097.2,1.5392448]
[1763323390222,0.002,3097.8,3097.7,0.875904]
[1763323390668,0.002,3097.8,3097.7,1.364304]
[1763323391023,0.002,3097.8,3097.7,0.405504]
[1763323391457,0.002,3097.8,3097.7,0.875904]
[1763323391954,0.002,3097.8,3097.7,1.77473426]
[1763323392169,0.002,3097.8,3097.7,5.00293582]
[1763323393045,0.002,3097.8,3097.7,6.13667662]
[1763323396667,0.002,3097.9,3097.8,1.5392448]
[1763323396848,0.002,3097.9,3097.8,2.4854448]
[1763323397050,0.002,3097.9,3097.8,3.4562846]
[1763323397450,0.002,3097.9,3097.8,6.68438195]
[1763323398089,0.002,3098.3,3098.0,0.405504]
[1763323398242,0.002,3098.3,3098.2,2.1905448]
[1763323398649,0.002,3098.3,3098.2,2.6807448]
[1763323398878,0.6674,3100.1,3098.3,0.405504]
[1763323399190,0.1971,3100.1,3098.5,0.861504]
[1763323399351,0.1971,3100.1,3098.5,1.351704]
[1763323399547,0.1971,3100.1,3098.5,5.71281288]
[1763323399742,0.4703,3100.4,3098.5,5.71281288]
[1763323399946,0.4703,3100.7,3098.9,1.5392448]
[1763323400372,0.4703,3100.7,3099.1,0.405504]
[1763323400797,0.4703,3100.7,3099.3,0.405504]
[1763323400953,0.4703,3100.7,3099.5,0.405504]
[1763323401348,0.4703,3100.7,3099.4,1.6239408]
[1763323401349,0.4703,3100.7,3099.7,0.405504]
[1763323401649,0.4703,3100.7,3099.9,0.405504]
[1763323401871,0.50805227,3100.8,3100.1,0.405504]
[1763323402274,0.98755227,3100.8,3100.1,0.405504]
[1763323403198,0.4825,3100.2,3100.1,0.405504]
[1763323404009,0.962,3100.2,3099.5,0.405504]
[1763323404172,0.962,3100.2,3099.3,8.71603749]
[1763323404173,0.1885,3099.5,3098.7,6.63451954]
[1763323404380,0.1885,3099.5,3098.8,0.72058008]
[1763323404381,0.0211,3099.4,3098.8,0.72058008]
[1763323404574,0.6391,3099.5,3098.8,0.72058008]
[1763323404789,0.4795,3099.4,3098.9,0.405504]
[1763323405799,0.4795,3099.4,3098.9,3.22695149]
[1763323406009,0.4795,3099.4,3098.8,0.72058008]
[1763323406171,0.4795,3099.4,3098.6,3.22725721]
[1763323406496,0.4795,3099.4,3098.8,0.405504]
[1763323406866,0.4795,3099.4,3098.7,1.1337408]
[1763323407268,0.4795,3099.4,3098.8,0.405504]
[1763323407599,0.6617,3098.8,3098.6,1.1337408]
[1763323407902,0.1885,3098.8,3098.7,0.43620639]
[1763323408197,0.4732,3098.6,3098.5,4.76761288]
[1763323408562,0.9027,3098.6,3098.5,0.406504]
[1763323408766,0.4232,3098.6,3098.5,3.63387208]
[1763323408962,0.9027,3098.6,3098.5,0.406504]
[1763323409198,0.1885,3098.8,3098.5,3.63387208]
[1763323409496,0.1885,3098.8,3098.6,1.09163144]
[1763323409695,0.4795,3099.1,3098.6,1.09163144]
[1763323409901,0.3742,3098.7,3098.6,1.09163144]
[1763323410112,0.1596,3099.5,3098.6,4.31888814]
[1763323410414,0.4795,3099.0,3098.6,4.31888814]
[1763323410609,0.4795,3099.0,3098.8,0.405504]
[1763323411103,0.1596,3099.5,3098.9,0.4735]
[1763323411279,0.1885,3099.7,3099.0,0.405504]
[1763323411480,0.1885,3099.7,3099.1,0.1802]
[1763323411918,0.668,3099.7,3099.0,3.6322881]
[1763323412120,0.668,3099.7,3099.1,0.36322881]
[1763323412298,0.4795,3099.6,3099.1,0.36322881]
[1763323412498,0.4795,3099.6,3098.8,0.405504]
[1763323412704,0.4795,3099.6,3098.7,0.405504]
[1763323413104,0.4795,3099.6,3098.9,0.405504]
[1763323413304,0.1885,3099.7,3098.9,0.405504]
[1763323414301,0.1885,3099.7,3099.1,0.405504]
[1763323414631,0.317,3099.0,3098.5,0.001]
[1763323414925,0.3138,3098.6,3098.5,0.001]
[1763323415503,0.7933,3098.6,3098.5,0.001]
[1763323416693,0.4795,3099.1,3098.5,0.880004]
[1763323417038,0.4795,3099.2,3098.7,0.405504]
[1763323418039,0.5055,3098.8,3098.5,0.001]
[1763323418341,0.3138,3098.6,3098.5,0.001]
[1763323418704,0.7933,3098.6,3098.5,0.001]
[1763323422273,0.7953,3098.6,3098.5,0.001]
[1763323423205,0.3158,3098.6,3098.5,0.001]
[1763323423354,0.7953,3098.6,3098.5,0.001]
[1763323423552,0.3158,3098.6,3098.5,0.001]
[1763323424430,0.7953,3098.6,3098.5,0.001]
[1763323426135,0.3158,3098.6,3098.5,0.001]
[1763323426949,0.002,3098.6,3098.5,0.001]
[1763323427554,0.319,3098.6,3098.5,0.001]
[1763323429086,0.002,3098.6,3098.5,0.001]
[1763323429487,0.002,3098.6,3098.5,1.334404]
[1763323429854,0.002,3098.6,3098.5,0.880004]
[1763323430791,0.002,3098.6,3098.5,1.334404]
[1763323431088,0.002,3098.6,3098.5,4.56177208]
[1763323431301,0.002,3098.6,3098.5,5.34069647]
[1763323431668,0.002,3098.6,3098.5,6.47443727]
[1763323431866,0.002,3099.0,3098.6,0.405504]
[1763323432070,0.002,3099.0,3098.9,0.4825]
[1763323432604,0.002,3099.0,3098.9,0.9824]
[1763323433300,0.002,3099.0,3098.9,0.4825]
[1763323433497,0.7969,3099.0,3098.9,0.77646705]
[1763323433792,0.7969,3099.0,3098.9,0.405504]
[1763323434292,0.3235,3099.0,3098.9,0.405504]
[1763323435686,0.002,3099.3,3099.0,0.405504]
[1763323436160,0.002,3099.3,3098.9,0.405504]
[1763323436500,0.002,3099.3,3098.9,0.905404]
[1763323436796,0.002,3099.3,3099.2,0.888004]
[1763323437091,0.002,3099.3,3099.2,4.31274313]
[1763323437699,0.002,3099.3,3099.2,1.086104]
[1763323438054,0.002,3099.3,3099.2,4.81264313]
[1763323440309,0.002,3099.3,3099.2,5.94638393]
[1763323440462,0.002,3099.3,3099.2,6.90502092]
[1763323441712,0.002,3099.3,3099.2,14.83822986]
[1763323441858,0.002,3100.0,3099.7,0.405504]
[1763323442081,0.002,3100.0,3099.9,0.4825]
[1763323442478,0.002,3100.0,3099.9,5.34205131]
[1763323442677,0.002,3100.0,3099.9,6.64491244]
[1763323442897,0.002,3100.7,3100.0,1.89536327]
[1763323443099,0.002,3100.7,3100.6,10.15305374]
[1763323443397,0.002,3100.7,3100.6,2.2198448]
[1763323443589,0.002,3100.7,3100.6,2.7197448]
[1763323443900,0.002,3100.7,3100.6,2.99171928]
[1763323444475,0.3281,3100.7,3100.6,1.81121928]
[1763323444683,0.3281,3100.7,3100.6,1.5392448]
[1763323445116,0.8015,3100.7,3100.0,4.55760933]
[1763323445288,0.3281,3100.7,3100.1,0.4999]
[1763323445487,0.3281,3100.7,3100.2,0.405504]
[1763323446011,0.002,3100.7,3100.2,0.4999]
[1763323446619,0.002,3100.7,3100.4,0.405504]
[1763323447478,0.002,3100.7,3100.6,0.888004]
[1763323448215,0.002,3100.7,3100.6,0.405504]
[1763323448422,0.002,3100.7,3100.6,0.888004]
[1763323448597,0.002,3100.7,3100.6,5.74682702]
[1763323448792,0.002,3100.7,3100.6,6.75742033]
[1763323452028,0.002,3100.7,3100.6,6.25752033]
[1763323453701,0.2206,3100.7,3100.6,2.14433411]
[1763323453927,0.2206,3100.7,3099.3,7.93320894]
[1763323454125,0.002,3101.1,3100.7,1.1337408]
[1763323454335,0.002,3101.1,3100.8,0.405504]
[1763323454490,1.62266083,3105.4,3100.8,0.405504]
[1763323454491,0.6655,3103.5,3102.1,0.405504]
[1763323454689,0.6655,3103.5,3102.0,1.2337408]
[1763323454690,0.6655,3103.5,3102.8,1.5392448]
[1763323454891,0.4749,3103.4,3102.0,0.16856491]
[1763323455090,0.4749,3103.4,3102.0,0.57406891]
[1763323455091,0.5533,3102.1,3102.0,0.57406891]
[1763323455293,0.5533,3102.1,3102.0,3.79779553]
[1763323455492,0.6631,3102.4,3102.1,1.5392448]
[1763323455793,0.6631,3102.4,3102.1,0.405504]
[1763323455993,0.3652,3102.2,3102.1,0.405504]
[1763323456325,0.1893,3102.8,3102.3,0.4944]
[1763323456528,0.4834,3103.1,3102.3,0.4944]
[1763323456529,0.4834,3103.1,3102.4,0.405504]
[1763323456695,0.4834,3103.1,3102.2,0.405504]
[1763323457122,0.4834,3103.1,3102.4,0.405504]
[1763323457321,0.4834,3103.1,3102.0,8.80393808]
[1763323457322,0.545,3102.5,3102.0,0.16856491]
[1763323457530,0.3522,3102.1,3102.0,0.16856491]
[1763323457765,0.8356,3102.1,3102.0,0.16856491]
[1763323458054,0.1893,3102.5,3102.2,0.405504]
[1763323458644,0.4834,3102.8,3102.2,0.405504]
[1763323458961,0.1893,3102.9,3102.6,1.5392448]
[1763323459142,0.4834,3103.2,3102.8,3.62839944]
[1763323459345,0.4834,3103.1,3102.8,0.405504]
[1763323459546,0.5479,3102.9,3102.8,0.405504]
[1763323460058,1.0272,3102.9,3102.6,0.405504]
[1763323461159,0.5479,3102.9,3102.6,3.62852334]
[1763323461328,0.5479,3102.9,3102.8,0.405504]
[1763323461526,1.0224,3102.9,3102.6,0.405504]
[1763323461728,0.0096,3102.8,3102.6,0.405504]
[1763323463157,0.0096,3102.8,3101.9,0.4507]
[1763323463158,0.9295,3102.7,3102.0,7.93320894]
[1763323463365,0.0274,3102.6,3102.0,11.15693556]
[1763323463660,0.5019,3102.6,3102.1,0.405504]
[1763323464065,0.455,3102.2,3102.1,0.405504]
[1763323464229,0.4745,3102.6,3102.1,0.405504]
[1763323464662,0.455,3102.2,3102.1,0.405504]
[1763323464860,0.9295,3102.2,3100.7,0.4507]
[1763323465027,0.0274,3102.1,3101.3,6.44890852]
[1763323465228,0.5019,3102.1,3101.4,0.405504]
[1763323465674,0.5019,3102.1,3101.4,1.5392448]
[1763323465974,0.4745,3102.4,3101.8,1.5392448]
[1763323466183,1.0589408,3104.7,3101.9,0.94724537]
[1763323466471,0.4745,3104.4,3102.0,0.405504]
[1763323467030,6.4,3104.3,3102.2,0.405504]
[1763323467229,6.4,3104.4,3102.2,1.5392448]
[1763323467477,16.82049469,3104.6,3102.2,1.5392448]
[1763323467478,15.28728575,3104.6,3102.2,9.92315374]
[1763323467678,15.28728575,3104.6,3102.4,0.405504]
[1763323468030,8.88728575,3104.6,3102.8,0.405504]
[1763323468234,0.1234,3104.5,3102.8,1.5392448]
[1763323468468,0.1234,3104.5,3103.0,0.405504]
[1763323468682,0.1234,3104.5,3103.3,0.405504]
[1763323468983,0.1234,3104.5,3103.3,1.23937529]
[1763323469163,0.1234,3104.5,3103.5,0.405504]
[1763323469646,0.1234,3104.5,3103.4,0.405504]
[1763323469843,8.88728575,3105.0,3104.5,0.405504]
[1763323470041,8.88728575,3105.0,3104.7,0.405504]
[1763323470451,8.88728575,3105.0,3104.6,0.405504]
[1763323470933,8.88728575,3105.0,3104.5,0.405504]
[1763323471268,8.90101799,3107.1,3104.9,12.04412858]
[1763323471269,0.1234,3106.0,3104.9,12.04412858]
[1763323471470,0.1234,3107.0,3106.0,0.405504]
[1763323471673,0.1234,3107.3,3106.4,7.93320894]
[1763323471844,0.1234,3107.2,3106.4,7.93320894]
[1763323472061,0.1234,3107.2,3106.5,0.405504]
[1763323472259,0.1234,3107.2,3106.9,7.93320894]
[1763323472465,0.1234,3108.3,3107.2,0.405504]
[1763323472648,10.25225541,3111.4,3108.3,0.405504]
[1763323472649,0.96688888,3110.6,3108.3,0.405504]
[1763323472985,7.98320894,3111.9,3108.8,0.405504]
[1763323473184,0.96678606,3110.6,3108.5,7.93320894]
[1763323473494,0.96678606,3110.6,3108.6,0.405504]
[1763323473982,0.96678606,3110.6,3107.3,0.4507]
[1763323473983,0.96678606,3110.6,3109.1,0.405504]
[1763323474185,0.17860907,3111.8,3109.6,0.405504]
[1763323474386,0.96643724,3111.5,3109.6,0.405504]
[1763323474986,0.96643724,3111.5,3108.4,0.4507]
[1763323475151,0.96643724,3111.5,3109.1,7.93320894]
[1763323475347,1.1337408,3111.4,3109.2,0.405504]
[1763323475552,2.10017804,3111.5,3109.6,7.93320894]
[1763323475553,0.96643724,3111.5,3109.6,7.93320894]
[1763323475975,1.69340887,3112.1,3109.6,7.93320894]
[1763323476190,1.1337408,3112.0,3109.6,7.93320894]
[1763323476771,1.1337408,3112.0,3109.1,7.93320894]
[1763323476772,7.93320894,3112.0,3109.1,7.93320894]
[1763323477093,1.63924479,3112.0,3109.1,7.93320894]
[1763323477295,1.60076636,3111.7,3109.1,7.93320894]
[1763323477467,1.60076636,3111.7,3109.2,0.405504]
[1763323477662,0.405504,3111.4,3109.2,0.405504]
[1763323478053,2.06909243,3111.6,3109.2,0.405504]
[1763323478250,0.405504,3111.4,3109.2,0.405504]
[1763323478449,0.405504,3111.4,3109.1,7.93320894]
[1763323478690,1.63045448,3111.3,3108.6,7.93320894]
[1763323478889,2.02131952,3111.2,3108.6,7.93320894]
[1763323479091,0.20690924,3111.5,3109.1,7.93320894]
[1763323479294,0.405504,3111.4,3109.2,0.405504]
[1763323479477,0.405504,3111.4,3109.1,7.93320894]
[1763323479478,1.5392448,3111.4,3109.1,7.93320894]
[1763323479685,1.63045448,3111.3,3108.6,7.93320894]
[1763323479879,1.5392448,3111.4,3108.7,0.405504]
[1763323480178,0.405504,3111.3,3108.4,7.93320894]
[1763323480382,0.405504,3111.1,3108.5,0.405504]
[1763323480579,1.65978568,3111.0,3108.5,0.405504]
[1763323480784,0.405504,3110.8,3108.4,7.93320894]
[1763323481409,0.9668328,3110.7,3108.5,0.405504]
[1763323481707,0.405504,3110.6,3108.5,0.405504]
[1763323482112,0.405504,3110.7,3108.5,0.405504]
[1763323482669,0.405504,3110.8,3108.5,0.405504]
[1763323482865,0.22399606,3110.7,3108.5,0.405504]
[1763323483908,0.20652897,3110.9,3109.5,0.405504]
[1763323484071,1.67054495,3112.2,3109.5,0.405504]
[1763323484269,1.1337408,3112.0,3109.5,0.405504]
[1763323484473,6.18322751,3111.8,3109.5,0.405504]
[1763323484705,0.405504,3111.7,3109.5,0.405504]
[1763323485016,0.49422448,3111.6,3109.5,0.405504]
[1763323486611,0.49422448,3111.6,3109.9,7.93320894]
[1763323486926,1.1337408,3112.2,3110.0,0.405504]
[1763323487618,3.56238349,3112.4,3110.1,0.1863]
[1763323487812,1.5392448,3112.3,3110.0,0.405504]
[1763323488113,0.49422448,3112.2,3110.0,0.856204]
[1763323488336,7.93320894,3112.8,3110.0,0.856204]
[1763323488337,1.1337408,3112.7,3110.0,0.856204]
[1763323488514,1.1337408,3112.7,3110.1,0.4507]
[1763323488731,4.5367408,3112.7,3110.2,0.405504]
[1763323488938,3.403,3112.7,3110.2,0.405504]
[1763323489131,3.403,3112.7,3110.2,0.4507]
[1763323489313,6.49999999,3113.6,3110.6,0.405504]
[1763323489485,1.64087876,3113.3,3110.6,0.405504]
[1763323489825,1.64087876,3113.3,3110.5,0.405504]
[1763323489826,8.43767586,3112.9,3110.5,0.405504]
[1763323490140,1.1337408,3112.8,3110.6,0.405504]
[1763323490421,0.50446692,3112.9,3110.7,0.405504]
[1763323491110,0.50446692,3112.9,3110.1,0.405504]
[1763323491280,0.50446692,3112.9,3110.7,0.405504]
[1763323491821,0.50446692,3112.9,3109.5,3.21593021]
[1763323491822,0.405504,3112.0,3109.1,8.11950894]
[1763323492025,0.405504,3112.0,3109.7,0.1964]
[1763323492319,0.405504,3112.0,3109.8,0.405504]
[1763323492508,0.32326537,3111.9,3109.8,0.405504]
[1763323492718,0.32326537,3111.9,3109.5,0.1964]
[1763323492719,1.1337408,3111.6,3109.5,0.1964]
[1763323492933,1.5392448,3111.3,3108.7,0.1964]
[1763323493227,1.5392448,3111.3,3109.1,0.001]
[1763323493422,0.405504,3111.2,3109.1,0.001]
[1763323494033,1.1337408,3111.3,3109.1,0.001]
[1763323494034,1.5392448,3110.8,3109.1,0.001]
[1763323495632,0.405504,3111.2,3109.1,0.001]
[1763323495832,1.5392448,3110.8,3109.1,0.001]
[1763323496830,0.09999999,3111.8,3109.1,0.001]
[1763323496831,8.63861719,3111.9,3109.3,0.405504]
[1763323497044,1.68173241,3112.8,3109.3,0.405504]
[1763323497247,8.63861719,3112.4,3109.5,0.405504]
[1763323497543,1.43073962,3112.3,3109.5,0.405504]
[1763323497741,0.405504,3112.1,3109.7,0.405504]
[1763323497965,1.1337408,3111.8,3109.2,0.669]
[1763323498109,0.29702437,3111.7,3109.3,0.405504]
[1763323498441,0.405504,3111.6,3109.3,0.878104]
[1763323498617,0.29702437,3111.5,3109.5,0.405504]
[1763323499060,0.29702437,3111.7,3109.6,0.405504]
[1763323499344,1.43076517,3111.8,3109.6,0.405504]
[1763323499644,0.70252837,3111.7,3109.6,0.405504]
[1763323499829,0.29702437,3111.6,3109.6,0.405504]
[1763323500146,0.50465686,3111.2,3109.7,0.405504]
[1763323501039,1.1337408,3111.8,3109.7,0.405504]
[1763323501249,0.29913826,3111.7,3109.9,0.405504]
[1763323501543,0.002,3112.9,3109.9,0.405504]
[1763323501748,8.63861719,3112.6,3110.0,0.4726]
[1763323501905,0.002,3112.9,3110.0,0.4726]
[1763323501906,0.29973326,3112.5,3110.1,0.405504]
[1763323502122,0.29973326,3112.4,3110.1,0.601904]
[1763323502318,8.64061719,3112.9,3110.3,0.405504]
[1763323502319,0.29973326,3112.3,3110.3,0.405504]
[1763323502553,0.29973326,3112.2,3110.3,0.405504]
[1763323502853,0.29973326,3112.1,3110.3,0.405504]
[1763323503060,0.29973326,3112.0,3110.3,0.405504]
[1763323503257,0.29973326,3111.9,3110.4,0.405504]
[1763323503552,0.405504,3112.6,3110.4,0.405504]
[1763323503553,0.29973326,3111.8,3110.4,0.405504]
[1763323503751,0.29973326,3111.7,3110.6,0.405504]
[1763323503921,0.29973326,3112.7,3110.6,0.405504]
[1763323504118,0.29973326,3112.6,3110.8,0.405504]
[1763323504355,0.29973326,3112.5,3110.9,0.4726]
[1763323504539,0.29973326,3112.4,3111.0,0.405504]
[1763323504745,0.29973326,3112.3,3111.2,0.405504]
[1763323504942,0.002,3112.9,3111.2,0.405504]
[1763323505123,0.29996357,3112.8,3111.4,0.405504]
[1763323505323,0.002,3112.9,3111.6,0.405504]
[1763323505885,0.002,3112.9,3111.8,0.405504]
[1763323506226,0.002,3112.9,3112.0,0.405504]
[1763323506622,0.002,3112.9,3111.1,0.1964]
[1763323506623,0.002,3112.9,3111.8,0.1964]
[1763323506826,0.002,3112.9,3111.1,0.669]
[1763323507023,0.002,3112.9,3111.2,0.4726]
[1763323507252,0.29996357,3112.8,3111.2,0.4726]
[1763323508159,0.002,3112.9,3111.2,0.4726]
[1763323508686,0.50439179,3112.6,3111.2,0.4726]
[1763323511063,1.43293802,3112.5,3110.5,0.4726]
[1763323511365,0.29919722,3112.4,3110.6,0.405504]
[1763323511577,1.1337408,3112.5,3110.5,0.4726]
[1763323511578,0.29919722,3112.3,3110.5,0.4726]
[1763323511783,0.29919722,3112.4,3110.5,0.4726]
[1763323512091,0.29919722,3112.3,3110.5,0.4726]
[1763323512290,0.29919722,3112.2,3110.2,0.4726]
[1763323512590,0.29919722,3112.1,3110.2,0.4726]
[1763323512891,0.29919722,3112.0,3110.2,0.4726]
[1763323513067,0.29919722,3111.9,3110.2,0.4726]
[1763323513267,0.29919722,3111.8,3110.2,0.4726]
[1763323513470,0.29919722,3111.7,3110.2,0.4726]
[1763323513652,0.29919722,3112.1,3110.2,0.4726]
[1763323513852,0.405504,3111.9,3110.1,0.1964]
[1763323514083,0.48304142,3111.8,3110.1,0.1964]
[1763323514289,0.29919722,3111.7,3110.1,0.1964]
[1763323514597,0.29919722,3111.6,3110.1,0.1964]
[1763323514913,1.43293802,3111.5,3109.8,0.4726]
[1763323515062,0.29919722,3111.4,3109.8,0.4726]
[1763323515257,0.29919722,3111.3,3109.8,0.4726]
[1763323515553,0.29919722,3111.2,3109.8,0.4726]
[1763323515867,0.29919722,3111.1,3109.8,0.4726]
[1763323516074,0.29919722,3111.0,3109.8,0.4726]
[1763323516388,1.1337408,3111.5,3109.8,0.4726]
[1763323516389,0.29919722,3110.9,3109.8,0.4726]
[1763323516587,0.29919722,3111.4,3109.9,0.405504]
[1763323516890,0.405504,3111.8,3109.8,0.4726]
[1763323517092,0.29919722,3111.7,3109.8,0.4726]
[1763323517289,0.405504,3111.8,3109.8,0.4726]
[1763323517290,0.29919722,3111.6,3109.8,0.4726]
[1763323517463,0.29919722,3111.5,3109.8,0.4726]
[1763323517657,0.29919722,3111.4,3109.8,0.4726]
[1763323517882,0.29919722,3111.3,3109.8,0.4726]
[1763323518083,0.29919722,3111.2,3109.8,0.4726]
[1763323518268,1.1337408,3111.9,3109.8,0.4726]
[1763323518479,0.405504,3111.7,3109.8,0.4726]
[1763323518788,0.405504,3111.7,3109.4,0.405504]
[1763323518993,0.50465459,3111.3,3109.7,0.4926]
[1763323519377,1.5392448,3111.7,3109.3,0.4926]
[1763323519576,0.405504,3111.5,3109.3,0.4926]
[1763323519783,0.405504,3111.4,3109.3,0.4926]
[1763323520295,0.405504,3111.5,3109.3,0.4926]
[1763323521197,0.405504,3111.3,3109.3,0.4926]
[1763323521396,1.1337408,3111.2,3109.3,0.4926]
[1763323521581,1.1337408,3111.2,3109.0,0.1964]
[1763323521582,1.5392448,3110.8,3109.0,0.1964]
[1763323521892,1.1337408,3110.8,3109.2,0.4676]
[1763323522500,0.405504,3111.0,3109.2,0.4676]
[1763323523363,1.5392448,3110.8,3109.1,0.1823]
[1763323524397,0.405504,3110.6,3109.1,0.1823]
[1763323524602,1.5392448,3110.8,3109.1,0.1823]
[1763323524802,0.405504,3110.6,3109.1,0.1823]
[1763323525000,0.405504,3110.6,3109.1,0.001]
[1763323525809,1.5392448,3110.3,3109.1,0.001]
[1763323526671,0.69006088,3110.2,3109.1,0.001]
[1763323527296,1.5392448,3110.3,3109.1,0.001]
[1763323527488,0.79392448,3110.2,3109.1,0.001]
[1763323527688,0.79392448,3110.2,3109.1,0.1823]
[1763323528892,0.79392448,3110.2,3109.1,0.001]
[1763323529492,0.405504,3110.1,3109.1,0.001]
[1763323531174,0.405504,3109.7,3109.1,0.001]
[1763323531583,1.5392448,3109.5,3109.1,0.001]
[1763323531805,0.39692093,3109.4,3109.1,0.001]
[1763323532108,1.5392448,3109.2,3109.1,0.001]
[1763323532690,2.04418678,3109.2,3109.1,0.001]
[1763323532893,1.5392448,3109.2,3109.1,0.001]
[1763323533328,7.9392448,3109.2,3109.1,0.001]
[1763323533527,8.73316928,3109.2,3109.1,0.001]
[1763323535519,1.5392448,3108.9,3108.5,0.001]
[1763323535737,1.5392448,3108.6,3108.5,0.001]
[1763323536032,7.9392448,3108.6,3108.5,0.001]
[1763323536420,8.0392448,3108.6,3108.5,0.001]
[1763323536621,9.12381206,3108.6,3108.5,0.001]
[1763323536820,9.12381206,3108.6,3106.8,0.6489]
[1763323537120,9.12381206,3108.6,3106.9,0.4676]
[1763323537121,0.405504,3108.3,3106.9,0.4676]
[1763323541107,0.39692093,3108.6,3106.9,0.4676]
[1763323541108,6.4,3108.2,3108.0,0.1813]
[1763323541321,0.39692093,3108.6,3107.2,0.4676]
[1763323541322,6.4,3108.6,3107.2,0.4676]
[1763323541534,1.1337408,3108.5,3107.0,0.1813]
[1763323541736,0.75337408,3108.4,3107.1,0.4676]
[1763323542125,0.75337408,3108.4,3108.3,0.6794]
[1763323542644,0.75337408,3108.4,3108.3,1.147]
[1763323543336,10.31,3109.3,3108.3,1.147]
[1763323543537,6.4,3109.5,3108.4,0.4676]
[1763323543750,1.1337408,3109.4,3108.4,0.4676]
[1763323544152,6.4,3109.5,3108.4,0.4676]
[1763323544518,1.1337408,3109.4,3108.4,0.4676]
[1763323544719,0.75337408,3109.3,3108.4,0.4676]
[1763323545447,0.50494121,3109.2,3108.4,0.4676]
[1763323545871,0.75337408,3109.3,3109.1,0.6794]
[1763323546017,0.50488149,3110.3,3109.2,0.4981]
[1763323546350,0.405504,3110.8,3109.3,0.4676]
[1763323546710,0.405504,3110.8,3108.3,0.1813]
[1763323546916,0.405504,3110.3,3108.5,0.4676]
[1763323547855,0.405504,3110.8,3108.5,0.4676]
[1763323548054,0.68916056,3110.9,3108.6,0.405504]
[1763323548544,2.15454222,3111.4,3108.8,0.405504]
[1763323548744,0.68916056,3111.3,3108.9,0.4676]
[1763323548948,0.405504,3111.2,3108.9,0.4676]
[1763323549446,0.50478364,3110.7,3108.9,0.4676]
[1763323549815,0.002,3110.3,3108.9,0.4676]
[1763323550218,0.002,3110.3,3110.2,0.6794]
[1763323550625,0.002,3110.3,3110.2,1.147]
[1763323550846,0.002,3110.3,3109.6,0.4676]
[1763323552046,0.002,3110.3,3109.1,0.4638]
[1763323553740,0.5048077,3110.1,3109.1,0.4638]
[1763323554131,0.002,3110.3,3109.1,0.4638]
[1763323554535,0.407504,3110.3,3109.1,0.4638]
[1763323557234,0.002,3110.3,3109.1,0.4638]
[1763323557747,0.75557408,3110.3,3109.1,0.4638]
[1763323558859,0.75557408,3110.3,3110.2,0.671]
[1763323559029,0.002,3110.3,3110.2,0.671]
[1763323559228,0.002,3110.3,3110.2,1.1348]
[1763323562932,0.002,3110.3,3110.2,0.9456]
[1763323563135,0.002,3110.3,3109.6,0.4638]
[1763323563366,0.002,3110.3,3109.1,0.4638]
[1763323563538,0.002,3110.3,3110.2,0.671]
[1763323563945,0.002,3110.3,3110.2,1.1348]
[1763323567170,0.002,3110.7,3110.2,1.1348]
[1763323567392,0.002,3110.7,3110.6,0.4818]
[1763323567599,0.004,3113.0,3110.9,0.4818]
[1763323567889,0.004,3113.0,3110.5,0.405504]